bitfinex/quotes_SOLUSD_20250305
["timestamp","ask_amount","ask_price","bid_price","bid_amount"]
[1741139667049,136.3,144.7,144.68,0.033]
[1741139667690,168.96585545,144.7,144.68,0.033]
[1741139667871,136.3,144.7,144.68,0.033]
[1741139668073,143.2108,144.7,144.68,0.033]
[1741139668384,136.3,144.7,144.68,0.033]
[1741139668686,136.3,144.7,144.68,25.78795545]
[1741139669186,1.5624,144.73,144.69,25.75495545]
[1741139669392,81.8,144.72,144.69,25.75495545]
[1741139669899,81.8,144.72,144.68,6.9445]
[1741139670072,81.8,144.72,144.68,32.69945545]
[1741139670274,81.8,144.72,144.69,25.75495545]
[1741139671072,81.8,144.72,144.7,25.75495545]
[1741139671262,81.8,144.74,144.7,25.75495545]
[1741139671780,81.8,144.77,144.73,25.75495545]
[1741139671981,81.8,144.77,144.74,25.75495545]
[1741139672380,81.8,144.77,144.75,25.75495545]
[1741139672784,81.83,144.79,144.76,25.75495545]
[1741139673190,0.03,144.79,144.76,25.75495545]
[1741139673366,0.03,144.79,144.78,25.75495545]
[1741139674189,0.03,144.79,144.78,32.66195545]
[1741139674593,0.03,144.79,144.78,114.26195545]
[1741139675262,0.03,144.8,144.79,0.28432314]
[1741139675596,0.03,144.86,144.79,107.63927859]
[1741139675773,0.03,144.86,144.85,25.75495545]
[1741139677065,0.03,144.86,144.85,107.35495545]
[1741139677261,0.03,144.86,144.85,107.63927859]
[1741139677566,0.03,144.86,144.85,107.49711702]
[1741139677761,0.03,144.91,144.85,109.08831938]
[1741139678061,0.03,144.91,144.9,51.5099109]
[1741139678266,0.03,144.91,144.9,133.39423404]
[1741139678569,0.03,144.91,144.9,139.61223404]
[1741139679173,0.03,144.94,144.93,25.75495545]
[1741139683476,0.03,144.94,144.93,107.35495545]
[1741139683980,0.03,144.94,144.93,114.53907859]
[1741139684699,0.03,144.94,144.93,107.63927859]
[1741139685083,0.03,144.94,144.93,107.35495545]
[1741139686805,0.03,144.94,144.93,109.08769212]
[1741139686979,0.03,144.94,144.93,115.98749212]
[1741139687475,0.03,144.94,144.93,114.53907859]
[1741139691681,0.03,144.94,144.93,107.35495545]
[1741139692893,0.03,144.94,144.93,25.75495545]
[1741139693597,0.03,144.94,144.91,88.5007]
[1741139693795,0.03,144.94,144.93,25.75495545]
[1741139694298,0.03,144.94,144.93,107.35495545]
[1741139695708,0.03,144.94,144.93,114.25475545]
[1741139696301,0.03,144.94,144.93,114.53907859]
[1741139697387,0.03,144.94,144.93,114.25475545]
[1741139698295,0.03,144.94,144.93,114.53907859]
[1741139698802,0.03,144.94,144.93,25.75495545]
[1741139698993,0.03,144.94,144.93,114.25475545]
[1741139699784,0.03,144.94,144.93,114.53907859]
[1741139700612,0.03,144.94,144.93,114.25475545]
[1741139700907,0.03,144.94,144.93,107.35495545]
[1741139701084,0.03,144.94,144.93,114.25475545]
[1741139702112,0.03,144.94,144.93,107.35495545]
[1741139702610,0.03,144.94,144.93,88.4998]
[1741139702783,0.03,144.94,144.93,114.25475545]
[1741139704799,0.03,144.94,144.93,107.35495545]
[1741139706411,0.03,144.94,144.93,114.25475545]
[1741139707514,0.03,144.94,144.92,25.75495545]
[1741139707712,0.03,144.94,144.93,25.75495545]
[1741139708494,0.03,144.94,144.93,22.93932825]
[1741139710717,0.03,144.94,144.93,16.03952825]
[1741139710901,0.03,144.94,144.92,6.9002]
[1741139711233,0.03,144.94,144.93,16.03952825]
[1741139712607,0.03,144.94,144.93,104.53932825]
[1741139713203,17.2396,145.02,144.93,104.53932825]
[1741139713204,7.6866,145.03,144.97,0.28432314]
[1741139713394,1.6395,145.03,145.0,16.03952825]
[1741139713714,1.6395,145.03,145.01,16.03952825]
[1741139713923,1.6395,145.03,145.0,16.03952825]
[1741139714086,1.6395,145.03,144.99,16.03952825]
[1741139714520,1.6395,145.03,144.99,25.64201844]
[1741139714819,1.6395,145.03,145.0,25.64201844]
[1741139715013,1.6395,145.03,144.99,25.64201844]
[1741139715223,25.64201844,145.02,144.97,81.6]
[1741139715426,25.64201844,145.02,144.96,25.64201844]
[1741139715797,25.64201844,145.01,144.95,107.24201844]
[1741139716011,114.06551844,145.0,144.94,25.64201844]
[1741139717095,6.6235,145.0,144.95,25.64201844]
[1741139717303,1.6395,145.03,144.98,25.64201844]
[1741139718093,8.5347,145.03,144.97,25.64201844]
[1741139718299,34.17671844,145.03,144.97,25.64201844]
[1741139718512,8.5347,145.03,144.98,25.64201844]
[1741139718703,1.6395,145.03,144.98,32.53921844]
[1741139718907,1.6395,145.03,144.99,25.64201844]
[1741139719321,1.6395,145.03,145.0,25.64201844]
[1741139720204,1.6395,145.03,145.01,25.64201844]
[1741139720606,1.6395,145.03,144.99,25.64201844]
[1741139721903,1.6395,145.03,145.0,25.64201844]
[1741139722830,8.5346,145.03,144.98,81.6]
[1741139723144,27.28151844,145.03,144.98,25.64201844]
[1741139723313,34.17661844,145.03,144.97,25.64201844]
[1741139723621,25.64201844,145.02,144.96,25.64201844]
[1741139723833,34.17661844,145.03,144.96,25.64201844]
[1741139724337,25.64201844,145.02,144.96,25.64201844]
[1741139724738,25.64201844,145.0,144.94,25.67501844]
[1741139725229,25.64201844,145.0,144.94,0.033]
[1741139725405,25.64201844,145.0,144.94,25.67501844]
[1741139725606,25.64201844,145.0,144.94,32.57431844]
[1741139725909,32.53861844,145.0,144.94,32.57431844]
[1741139726907,6.8966,145.0,144.95,25.64201844]
[1741139727206,32.53861844,145.0,144.94,32.57431844]
[1741139728237,6.8966,145.0,144.94,32.57431844]
[1741139728453,32.53861844,145.0,144.94,32.57431844]
[1741139729233,6.1441,145.01,144.97,25.64201844]
[1741139730440,6.1441,145.01,144.94,114.17431844]
[1741139730441,25.64201844,145.0,144.94,114.17431844]
[1741139731439,32.53871844,145.0,144.94,114.17431844]
[1741139731615,81.8,145.0,144.94,32.57421844]
[1741139731809,107.44201844,145.0,144.94,32.57421844]
[1741139732311,31.78611844,145.01,144.95,25.64201844]
[1741139732507,6.1441,145.01,144.97,25.64201844]
[1741139733636,1.6395,145.03,144.98,32.53951844]
[1741139733835,1.6395,145.03,145.0,25.64201844]
[1741139734435,88.2906,145.05,145.01,25.64201844]
[1741139734615,81.8,145.05,145.01,16.02307497]
[1741139735425,81.8,145.05,145.02,16.02307497]
[1741139735943,81.8,145.05,145.01,16.02307497]
[1741139736259,81.8,145.05,145.0,22.91947497]
[1741139736429,81.8,145.05,145.01,16.02307497]
[1741139737034,16.02307497,145.04,144.98,88.497]
[1741139737239,16.02307497,145.04,144.98,104.52007497]
[1741139737545,16.02307497,145.04,144.98,97.62307497]
[1741139737723,16.02307497,145.03,144.98,81.6]
[1741139738041,16.02307497,145.01,144.95,16.02307497]
[1741139738214,16.02307497,145.0,144.94,104.55537497]
[1741139738626,25.65951419,145.0,144.94,114.19181419]
[1741139738847,108.98391419,145.01,144.94,114.19181419]
[1741139739141,25.65951419,144.99,144.94,0.033]
[1741139739342,81.8,145.0,144.95,25.65951419]
[1741139739645,25.65951419,144.99,144.94,0.033]
[1741139740644,107.45951419,145.0,144.94,0.033]
[1741139740947,107.45951419,145.0,144.94,25.69251419]
[1741139742149,114.35611419,145.0,144.94,32.59151419]
[1741139742542,25.65951419,144.99,144.94,0.033]
[1741139742745,88.6966,145.0,144.94,6.9322]
[1741139743051,25.65951419,144.99,144.94,6.9322]
[1741139743932,32.55661419,144.99,144.94,0.033]
[1741139744352,25.65951419,144.98,144.94,0.033]
[1741139744655,31.27951419,144.99,144.94,0.033]
[1741139745167,5.62,144.99,144.94,25.69251419]
[1741139745869,5.62,144.99,144.94,32.59161419]
[1741139746356,25.65951419,144.98,144.94,0.033]
[1741139747529,5.62,144.99,144.94,0.033]
[1741139747858,5.62,144.99,144.94,32.59171419]
[1741139749754,25.65951419,144.98,144.94,0.033]
[1741139750336,31.27951419,144.99,144.94,0.033]
[1741139750747,5.62,144.99,144.95,25.65951419]
[1741139751646,5.62,144.99,144.94,107.29251419]
[1741139751844,5.62,144.99,144.95,6.8989]
[1741139752344,5.62,144.99,144.94,114.19181419]
[1741139752545,31.27951419,144.99,144.94,88.5323]
[1741139753132,5.62,144.99,144.94,114.19181419]
[1741139753655,31.27951419,144.99,144.94,88.5323]
[1741139753959,38.17651419,144.99,144.94,88.5323]
[1741139755349,5.62,144.99,144.95,25.65951419]
[1741139756867,5.62,144.99,144.95,6.8986]
[1741139757832,5.62,144.99,144.95,32.55811419]
[1741139758563,0.03,145.0,144.97,25.65951419]
[1741139760163,0.03,145.0,144.99,25.65951419]
[1741139760542,0.03,145.0,144.99,16.02364237]
[1741139760866,0.03,145.0,144.94,81.633]
[1741139761043,0.03,145.0,144.96,16.02364237]
[1741139762449,0.03,145.0,144.97,16.02364237]
[1741139763668,0.03,145.0,144.98,16.02364237]
[1741139764464,0.03,145.0,144.98,22.92084237]
[1741139764668,0.03,145.0,144.99,16.02364237]
[1741139765546,0.03,145.0,144.98,16.02364237]
[1741139765744,0.03,145.0,144.97,22.92144237]
[1741139766157,0.03,145.0,144.98,16.02364237]
[1741139767667,0.03,145.0,144.97,16.02364237]
[1741139767979,0.03,145.0,144.96,22.92204237]
[1741139768441,16.05364237,145.0,144.94,16.05664237]
[1741139768645,16.05364237,145.0,144.94,0.033]
[1741139768844,0.03,145.0,144.94,6.9323]
[1741139769053,0.03,145.0,144.96,16.02364237]
[1741139769357,0.03,145.0,144.96,22.92184237]
[1741139770065,0.03,145.0,144.97,16.02364237]
[1741139771069,0.03,145.0,144.97,22.92154237]
[1741139772654,0.03,145.0,144.96,16.02364237]
[1741139773667,0.03,145.0,144.96,22.92174237]
[1741139776084,0.03,145.0,144.94,81.633]
[1741139776374,16.05364237,145.0,144.94,0.033]
[1741139776757,16.05364237,145.0,144.94,22.95604237]
[1741139777968,22.95024237,145.0,144.94,22.95604237]
[1741139778989,16.05364237,145.0,144.94,22.95604237]
[1741139779682,0.03,145.0,144.96,16.02364237]
[1741139780255,0.03,145.0,144.97,16.02364237]
[1741139780873,0.03,145.0,144.96,16.02364237]
[1741139781181,0.03,145.0,144.95,16.02364237]
[1741139781467,16.05364237,145.0,144.95,16.02364237]
[1741139781672,16.05364237,145.0,144.94,97.65664237]
[1741139782177,22.95024237,145.0,144.94,104.55594237]
[1741139782553,1.587,144.98,144.94,0.033]
[1741139783171,5.62,144.99,144.94,22.95594237]
[1741139783371,5.62,144.99,144.95,16.02364237]
[1741139783877,5.62,144.99,144.94,22.95594237]
[1741139784179,5.62,144.99,144.94,0.033]
[1741139784365,5.62,144.99,144.94,16.05664237]
[1741139784552,12.5173,144.99,144.94,0.033]
[1741139784759,5.62,144.99,144.94,16.05664237]
[1741139784973,5.62,144.99,144.95,16.02364237]
[1741139785658,5.62,144.99,144.94,16.05664237]
[1741139786369,5.62,144.99,144.95,6.8989]
[1741139786559,5.62,144.99,144.94,6.9322]
[1741139786761,5.62,144.99,144.94,22.95584237]
[1741139790285,5.62,144.99,144.94,0.033]
[1741139790587,5.62,144.99,144.94,10.29678048]
[1741139790887,5.62,144.99,144.95,10.26378048]
[1741139792090,10.26378048,144.98,144.94,0.033]
[1741139792259,17.16268048,144.95,144.94,0.033]
[1741139792459,10.26378048,144.95,144.94,0.033]
[1741139793161,97.75867998,144.99,144.94,0.033]
[1741139793470,10.26378048,144.95,144.94,0.033]
[1741139794081,10.26378048,144.96,144.94,0.033]
[1741139794658,16.04499843,144.95,144.94,0.033]
[1741139794859,16.04499843,144.96,144.94,0.033]
[1741139795086,97.84499843,144.97,144.94,0.033]
[1741139795772,87.42,144.99,144.94,0.033]
[1741139795966,81.8,144.99,144.94,16.07799843]
[1741139796375,81.8,144.99,144.95,6.8989]
[1741139796563,16.04499843,144.99,144.94,16.07799843]
[1741139796771,16.07499843,145.0,144.94,22.97729843]
[1741139798293,16.04499843,144.99,144.94,0.033]
[1741139799185,0.03,145.0,144.95,16.04499843]
[1741139799493,0.03,145.0,144.96,16.04499843]
[1741139799792,0.03,145.0,144.94,81.633]
[1741139800089,0.03,145.0,144.96,16.04499843]
[1741139800589,0.03,145.0,144.97,6.8979]
[1741139800961,0.03,145.0,144.94,81.633]
[1741139800962,16.04499843,144.99,144.95,6.8989]
[1741139802072,16.04499843,144.99,144.94,0.033]
[1741139802274,16.04499843,144.98,144.94,6.9324]
[1741139802496,16.04499843,144.99,144.94,6.9324]
[1741139805893,0.03,145.0,144.94,0.033]
[1741139806080,16.04499843,144.99,144.94,0.033]
[1741139806303,16.04499843,144.98,144.94,0.033]
[1741139808993,0.03,145.0,144.94,0.033]
[1741139809179,16.04499843,144.98,144.94,0.033]
[1741139810116,0.03,145.0,144.94,0.033]
[1741139810408,16.07499843,144.99,144.94,0.033]
[1741139810590,0.03,144.99,144.94,0.033]
[1741139810909,16.04499843,144.98,144.94,0.033]
[1741139811916,0.03,144.99,144.97,36.04499843]
[1741139812211,0.03,144.99,144.98,16.04499843]
[1741139813718,0.03,144.99,144.98,22.94249843]
[1741139816714,0.03,144.99,144.98,17.15255593]
[1741139817532,0.03,144.99,144.98,10.25505593]
[1741139817690,81.8,144.98,144.94,0.033]
[1741139818016,0.03,144.99,144.94,0.033]
[1741139818919,10.28505593,144.99,144.94,0.033]
[1741139819697,0.03,144.99,144.94,10.28805593]
[1741139819996,10.28505593,144.99,144.94,0.033]
[1741139820498,16.06767854,144.99,144.94,6.9324]
[1741139820997,16.06767854,144.99,144.94,0.033]
[1741139820998,16.03767854,144.98,144.94,0.033]
[1741139821197,16.03767854,144.97,144.94,0.033]
[1741139822595,16.06767854,144.98,144.94,0.033]
[1741139823623,16.03767854,144.97,144.94,0.033]
[1741139823998,0.03,144.98,144.94,0.033]
[1741139824198,0.03,144.98,144.94,16.07067854]
[1741139824611,0.03,144.98,144.97,20.0]
[1741139824825,0.03,144.98,144.97,22.57827854]
[1741139826939,0.03,144.98,144.96,88.4983]
[1741139827615,0.03,144.98,144.95,6.8988]
[1741139828030,0.03,144.98,144.95,22.93647854]
[1741139829022,0.03,144.98,144.94,6.9323]
[1741139829336,0.03,144.98,144.94,0.033]
[1741139829631,0.03,144.98,144.94,6.9322]
[1741139829807,0.03,144.98,144.94,22.96987854]
[1741139830011,0.03,144.98,144.95,16.03767854]
[1741139830229,0.03,144.98,144.94,22.96987854]
[1741139831234,0.03,144.98,144.94,6.9322]
[1741139831540,0.03,144.98,144.95,16.03767854]
[1741139832916,0.03,144.98,144.94,0.033]
[1741139833929,16.03767854,144.97,144.94,0.033]
[1741139834515,16.03767854,144.96,144.94,0.033]
[1741139834909,16.03767854,144.97,144.94,0.033]
[1741139836219,97.83767854,144.96,144.94,0.033]
[1741139836417,16.03767854,144.95,144.94,0.033]
[1741139837314,22.93657854,144.95,144.94,0.033]
[1741139837516,16.03767854,144.95,144.94,0.033]
[1741139837946,152.33767854,144.96,144.94,0.033]
[1741139838238,136.3,144.96,144.94,0.033]
[1741139838535,81.8,144.97,144.94,0.033]
[1741139838735,97.83767854,144.97,144.94,0.033]
[1741139839243,16.03767854,144.95,144.94,0.033]
[1741139842343,104.73657854,144.95,144.94,0.033]
[1741139842542,218.1,144.94,144.91,0.033]
[1741139842843,16.03767854,144.92,144.91,0.033]
[1741139843043,22.93797854,144.92,144.91,0.033]
[1741139843245,22.93797854,144.92,144.82,13.1793]
[1741139843423,16.03767854,144.88,144.82,13.1793]
[1741139843621,97.83767854,144.88,144.82,13.1793]
[1741139844243,16.03767854,144.87,144.81,16.03767854]
[1741139844650,87.4,144.89,144.84,16.03767854]
[1741139844845,87.4,144.89,144.85,16.03767854]
[1741139845219,87.4,144.89,144.84,16.03767854]
[1741139845711,103.43767854,144.89,144.83,16.03767854]
[1741139845917,103.43767854,144.89,144.84,20.0]
[1741139846116,16.03767854,144.86,144.81,6.9386]
[1741139846419,81.8,144.88,144.81,22.97627854]
[1741139846622,16.03767854,144.86,144.81,6.9386]
[1741139847316,97.83767854,144.85,144.81,0.033]
[1741139847610,16.03767854,144.83,144.81,0.033]
[1741139847815,97.83767854,144.82,144.81,0.033]
[1741139848617,81.8,144.82,144.81,0.033]
[1741139848815,81.8,144.86,144.81,16.07067854]
[1741139849529,81.8,144.86,144.82,6.9051]
[1741139849928,16.03767854,144.85,144.82,6.9051]
[1741139850640,97.83767854,144.86,144.82,6.9051]
[1741139852143,81.8,144.86,144.81,22.97627854]
[1741139852539,81.8,144.86,144.81,40.24027854]
[1741139853130,97.83767854,144.86,144.81,24.2026]
[1741139853849,81.8,144.86,144.81,24.2026]
[1741139854057,81.8,144.86,144.83,16.03767854]
[1741139854350,81.8,144.89,144.85,16.03767854]
[1741139855450,81.8,144.89,144.86,16.03767854]
[1741139855830,16.03767854,144.91,144.85,16.03767854]
[1741139856029,16.03767854,144.91,144.86,6.9032]
[1741139856239,16.03767854,144.9,144.86,6.9032]
[1741139856828,92.15234914,144.92,144.83,22.94227854]
[1741139856829,97.83767854,144.89,144.83,22.94227854]
[1741139857127,97.83767854,144.88,144.83,6.9046]
[1741139858022,97.83767854,144.88,144.85,0.033]
[1741139858223,16.03767854,144.86,144.85,0.033]
[1741139858454,97.83767854,144.86,144.85,0.033]
[1741139859330,143.2023,144.88,144.85,0.033]
[1741139859530,16.03767854,144.86,144.85,0.033]
[1741139860737,22.94087854,144.86,144.85,0.033]
[1741139862261,16.03767854,144.86,144.85,0.033]
[1741139864460,22.94087854,144.86,144.85,0.033]
[1741139864851,23.22520168,144.86,144.85,0.033]
[1741139865962,22.94087854,144.86,144.85,0.033]
[1741139866167,16.03767854,144.87,144.85,0.033]
[1741139868057,157.42695556,144.88,144.85,0.033]
[1741139868254,153.96437854,144.88,144.85,0.033]
[1741139869449,16.03767854,144.86,144.85,0.033]
[1741139871449,22.94087854,144.86,144.85,0.033]
[1741139873448,23.22520168,144.86,144.85,0.033]
[1741139873948,62.80078022,144.86,144.81,0.033]
[1741139874272,16.03767854,144.82,144.81,0.033]
[1741139874473,157.93767854,144.82,144.81,0.033]
[1741139875675,168.3085266,144.82,144.81,0.033]
[1741139878450,32.29284974,144.82,144.81,0.033]
[1741139879080,0.28432314,144.81,144.79,0.033]
[1741139879375,16.32200168,144.8,144.79,0.033]
[1741139879578,23.22800168,144.8,144.79,0.033]
[1741139881167,16.03767854,144.8,144.79,0.033]
[1741139882562,19.5034266,144.82,144.79,0.033]
[1741139882774,81.8,144.81,144.79,16.07067854]
[1741139883663,81.8,144.81,144.8,22.94367854]
[1741139883969,81.8,144.83,144.8,22.94367854]
[1741139884577,81.8,144.83,144.8,16.03767854]
[1741139884775,81.8,144.83,144.79,0.033]
[1741139885464,81.8,144.83,144.79,16.07067854]
[1741139885987,81.8,144.83,144.8,16.03767854]
[1741139887587,81.8,144.83,144.79,16.07067854]
[1741139888681,81.8,144.83,144.79,22.97717854]
[1741139891292,81.8,144.83,144.82,16.03767854]
[1741139891588,81.8,144.86,144.82,16.03767854]
[1741139891765,81.8,144.86,144.84,16.03767854]
[1741139892684,81.8,144.88,144.84,16.03767854]
[1741139892892,81.8,144.9,144.86,16.03767854]
[1741139893059,81.8,144.9,144.87,36.03767854]
[1741139893265,81.8,144.9,144.88,16.03767854]
[1741139893567,0.03,144.91,144.89,16.03767854]
[1741139893762,0.03,144.91,144.9,16.03767854]
[1741139895295,0.03,144.91,144.88,1.6305]
[1741139895588,16.06767854,144.91,144.85,16.03767854]
[1741139895889,81.8,144.9,144.85,16.03767854]
[1741139896282,81.8,144.9,144.87,16.03767854]
[1741139896491,0.03,144.88,144.85,0.14216157]
[1741139896795,0.03,144.88,144.85,0.28432314]
[1741139897471,0.03,144.88,144.87,16.03767854]
[1741139897672,0.03,144.88,144.86,16.03767854]
[1741139897988,81.83,144.88,144.84,22.42567854]
[1741139898486,81.83,144.88,144.85,16.03767854]
[1741139898866,0.03,144.88,144.87,16.03767854]
[1741139900893,0.03,144.88,144.85,16.03767854]
[1741139901189,0.03,144.88,144.84,22.42567854]
[1741139901792,97.83767854,144.87,144.82,16.03767854]
[1741139901966,81.8,144.86,144.81,17.66817854]
[1741139902583,81.8,144.86,144.81,27.33645595]
[1741139902897,81.8,144.86,144.82,25.70595595]
[1741139903195,81.8,144.86,144.81,1.6305]
[1741139903373,81.8,144.86,144.81,27.33645595]
[1741139903572,107.50595595,144.86,144.81,1.6305]
[1741139904583,81.8,144.86,144.81,27.33645595]
[1741139904781,81.8,144.86,144.82,25.70595595]
[1741139904976,81.8,144.86,144.84,25.70595595]
[1741139905293,0.03,144.88,144.84,25.70595595]
[1741139906485,0.03,144.88,144.85,25.70595595]
[1741139906692,0.03,144.88,144.86,25.70595595]
[1741139907382,0.03,144.88,144.87,25.70595595]
[1741139908002,0.03,144.88,144.87,25.84811752]
[1741139908297,0.03,144.88,144.87,32.00961752]
[1741139908671,0.03,144.88,144.87,115.35967909]
[1741139909999,0.03,144.88,144.87,115.21751752]
[1741139910385,0.03,144.88,144.87,122.12021752]
[1741139912082,0.03,144.88,144.87,115.21751752]
[1741139912586,0.03,144.88,144.87,33.61751752]
[1741139913202,0.03,144.88,144.87,40.52021752]
[1741139913705,0.03,144.88,144.87,40.66237909]
[1741139914001,0.03,144.88,144.87,122.26237909]
[1741139914296,0.03,144.91,144.88,0.28432314]
[1741139914507,0.03,144.91,144.9,25.84811752]
[1741139916583,0.03,144.91,144.9,0.14216157]
[1741139917211,0.03,144.91,144.9,25.84811752]
[1741139918207,0.03,144.91,144.9,32.89157909]
[1741139919294,0.03,144.91,144.9,25.99027909]
[1741139920109,0.03,144.91,144.9,0.14216157]
[1741139920612,0.03,144.91,144.9,25.84811752]
[1741139921204,0.03,144.91,144.9,32.89157909]
[1741139922210,0.03,144.91,144.88,81.6]
[1741139922708,0.03,144.91,144.88,0.14216157]
[1741139922915,0.03,144.91,144.88,16.19509941]
[1741139923289,0.03,144.91,144.88,16.05293784]
[1741139926617,0.03,144.91,144.88,0.14216157]
[1741139928214,0.03,144.91,144.88,16.19509941]
[1741139928719,0.03,144.91,144.88,0.14216157]
[1741139930727,0.03,144.91,144.88,23.09719941]
[1741139931224,0.03,144.91,144.89,16.05293784]
[1741139932032,0.03,144.91,144.88,23.13019941]
[1741139932211,0.03,144.91,144.88,0.17516157]
[1741139933631,0.03,144.91,144.88,23.13009941]
[1741139933942,0.03,144.91,144.88,7.07716157]
[1741139934428,0.03,144.91,144.89,0.14216157]
[1741139934611,0.03,144.91,144.9,36.19509941]
[1741139934804,0.03,144.91,144.9,20.14216157]
[1741139935121,0.03,144.91,144.9,0.28432314]
[1741139936510,0.03,144.91,144.88,104.58813784]
[1741139936709,0.03,144.91,144.88,81.633]
[1741139937223,16.08293784,144.91,144.88,0.033]
[1741139937616,16.05293784,144.89,144.88,0.033]
[1741139938127,16.05293784,144.9,144.88,0.033]
[1741139938305,0.03,144.91,144.88,0.033]
[1741139938639,16.05293784,144.9,144.88,0.033]
[1741139939909,16.05293784,144.89,144.88,0.033]
[1741139944224,0.03,144.91,144.88,0.033]
[1741139944415,0.03,144.91,144.9,0.14216157]
[1741139947840,0.03,144.95,144.93,20.0]
[1741139948148,0.03,144.95,144.94,16.33726098]
[1741139949013,0.03,144.95,144.94,17.78547874]
[1741139949314,0.03,144.97,144.96,20.28432314]
[1741139949521,0.03,145.0,144.98,7.18182314]
[1741139949723,0.03,145.0,144.98,106.28241287]
[1741139949923,0.03,145.0,144.99,0.28432314]
[1741139950124,0.03,145.03,145.02,20.28432314]
[1741139950440,0.03,145.03,145.02,133.99019882]
[1741139950626,0.03,145.03,145.02,117.93726098]
[1741139950827,0.03,145.03,145.02,429.93726098]
[1741139951624,0.03,145.03,145.02,436.83286098]
[1741139952323,0.03,145.03,145.02,429.93726098]
[1741139953619,0.03,145.03,145.02,452.88579882]
[1741139954323,10.70507721,145.12,145.03,0.28432314]
[1741139954526,10.70507721,145.12,145.11,16.19509941]
[1741139954934,10.70507721,145.12,145.11,113.99019882]
[1741139955229,1.8273599,145.13,145.12,0.14216157]
[1741139955427,1.8273599,145.13,145.12,16.19509941]
[1741139955622,1.8273599,145.13,145.12,16.33726098]
[1741139956031,1.8273599,145.13,145.12,16.19509941]
[1741139956231,1.8273599,145.13,145.12,16.33726098]
[1741139956547,1.8273599,145.13,145.12,32.76032413]
[1741139956845,1.8273599,145.13,145.12,120.57152413]
[1741139957044,1.8273599,145.13,145.12,122.01774309]
[1741139957238,0.03,145.18,145.17,25.72736256]
[1741139958249,0.03,145.18,145.17,107.46952413]
[1741139958750,0.03,145.18,145.17,114.35792413]
[1741139958929,1.6507,145.28,145.25,25.58520099]
[1741139959449,1.6507,145.28,145.24,25.58520099]
[1741139959825,8.5339,145.28,145.23,25.58520099]
[1741139960027,34.11910099,145.28,145.22,25.58520099]
[1741139960548,25.58520099,145.27,145.21,107.32736256]
[1741139960748,25.58520099,145.26,145.2,25.58520099]
[1741139961655,107.38520099,145.27,145.21,25.58520099]
[1741139962054,6.8842,145.26,145.21,25.58520099]
[1741139963650,6.8842,145.26,145.22,25.58520099]
[1741139963831,6.8842,145.26,145.21,25.58520099]
[1741139965139,81.8,145.3,145.24,25.58520099]
[1741139965455,6.8823,145.3,145.26,25.58520099]
[1741139965962,32.46750099,145.3,145.24,25.72736256]
[1741139966332,25.58520099,145.29,145.24,0.14216157]
[1741139966652,32.46750099,145.3,145.24,25.72736256]
[1741139967160,32.46840099,145.28,145.23,107.18520099]
[1741139967360,32.46840099,145.28,145.23,81.6]
[1741139967855,6.8832,145.28,145.23,107.18520099]
[1741139968165,6.8832,145.28,145.24,25.58520099]
[1741139968860,6.9132,145.28,145.24,25.58520099]
[1741139969075,0.03,145.28,145.24,25.58520099]
[1741139969859,0.03,145.28,145.25,25.72736256]
[1741139970157,0.03,145.28,145.27,25.86952413]
[1741139970360,0.03,145.28,145.27,107.46952413]
[1741139971253,0.03,145.28,145.27,114.35322413]
[1741139971654,1.5396,145.38,145.31,0.28432314]
[1741139971847,6.8781,145.39,145.34,25.58520099]
[1741139972237,32.46330099,145.39,145.34,25.58520099]
[1741139972437,107.38520099,145.4,145.35,25.58520099]
[1741139972746,114.26280099,145.4,145.35,25.58520099]